Cogmind - Beta 13 *** ADVENTURER MODE // 2024.04.27 @ 20:49:43 Player: MiNathan Result: Destroyed by G-47 Trooper with Particle Gun Performance ------------- Evolutions (2) 1000 Regions Visited (3) 600 Robots Destroyed (70) 350 Value Destroyed (1796) 1796 Prototype IDs (1) 20 Alien Tech Used (0) 0 Bonus (16) 16 TOTAL SCORE: 3782 Bonus ------- High Alert Combat Kills 16 Cogmind --------- Core Integrity 0/550 Matter 201/300 Energy 87/100 System Corruption 1% Temperature Cool (15) Movement Core (100) Ox1 Location -8/Materials Parts ------- > --- POWER (2) -------- (None) > --- PROPULSION (2) --- (None) > --- UTILITY (5) ------ Improved Signal Interpreter Transport Network Coupler > --- WEAPON (2) ------- Heavy Particle Cannon > --- INVENTORY (5) ---- (None) Peak State ------------ > --- POWER ------------ Improved Ion Engine Light Deuterium Engine > --- PROPULSION ------- Xenon Bombardment Thruster Xenon Bombardment Thruster > --- UTILITY ---------- Structural Scanner Improved Sensor Array Improved Signal Interpreter Transport Network Coupler ECM Suite > --- WEAPON ----------- Heavy Assault Rifle Advanced Assault Cannon > --- INVENTORY -------- Light Treads Light Treads Long-range Tractor Beam [Rating: 28] Favorites ----------- Power Ion Engine Engine Ion Engine Propulsion Light Treads Treads Light Treads Leg Aluminum Leg Flight Unit Xenon Bombardment Thruster Utility Signal Interpreter Device Sensor Array Processor Signal Interpreter Weapon Minigun Energy Gun Medium Laser Energy Cannon Heavy Particle Cannon Ballistic Gun Minigun Ballistic Cannon Advanced Assault Cannon Launcher Grenade Launcher Build | -11 -10 -9 -8 ------- Run | Yrd Mat Mat Mat Slots Evolved 4 | . . 2 2 Power 1 | . . 1 . Propulsion . | . . . . Utility 3 | . . 1 2 Weapon . | . . . . Parts Attached 65 | 5 11 26 23 Power 15 | 1 1 6 7 Engine 15 | 1 1 6 7 Core . | . . . . Reactor . | . . . . Propulsion 15 | 2 2 8 3 Treads 9 | 2 . 6 1 Leg 4 | . 2 2 . Wheel . | . . . . Hover . | . . . . Flight 2 | . . . 2 Utility 16 | . 4 6 6 Device 10 | . 1 5 4 Storage . | . . . . Processor 6 | . 3 1 2 Hackware . | . . . . Protection . | . . . . Artifact . | . . . . Weapon 19 | 2 4 6 7 Energy Gun 1 | 1 . . . Energy Cannon 3 | . . . 3 Ballistic Gun 11 | 1 2 6 2 Ballistic Cannon 1 | . . . 1 Launcher 3 | . 2 . 1 Special Weapon . | . . . . Impact Weapon . | . . . . Slashing Weapon . | . . . . Piercing Weapon . | . . . . Special Melee Weapon . | . . . . Unidentified Prototypes 1 | . . . 1 Parts Lost 15 | . . 1 14 Power 3 | . . . 3 Propulsion 2 | . . . 2 Utility 4 | . . . 4 Weapon 6 | . . 1 5 Highest Loss Streak 11 | . . 1 11 To Critical Strikes . | . . . . Average Slot Usage (%) 90 | . 93 89 88 Engine 15 | . 14 17 14 Treads 10 | . 8 11 12 Leg 10 | . 19 9 . Device 14 | . 4 18 23 Processor 15 | . 17 11 18 Ballistic Gun 14 | . 13 18 9 Ballistic Cannon 1 | . . . 4 Launcher 6 | . 13 3 . Naked Turns . | . . . . Heaviest Build 27 | 9 11 20 27 Greatest Support 40 | 40 40 40 40 Greatest Overweight (x) 6 | . 2 6 4 Average Overweight (x) . | . . . . Largest Inventory Capacity 5 | 5 5 5 5 Average Capacity 5 | 5 5 5 5 Most Carried 5 | 5 3 4 3 Average Carried . | . . 1 . Final Capacity 5 | 5 5 5 5 Final Carried 3 | . . 3 . Class Distribution -------------------- 52% | Mutant 43% | Scavenger-Skirmisher Dominant Class ---------------- Mutant | -10/Materials Scavenger-Skirmisher | -9/Materials Scavenger-Skirmisher | -8/Materials Resources | -11 -10 -9 -8 ----------- Run | Yrd Mat Mat Mat Matter Collected 1769 | 209 337 860 363 Remotely 30 | . . . 30 Salvage Created 2043 | . 457 1036 550 Parts 142 | . 41 76 25 Haulers Intercepted 2 | . . 2 . Recyclers Shooed 1 | . . 1 . Parts Field Recycled . | . . . . Retrieved Matter . | . . . . Parts Self-Destructed . | . . . . Prevented . | . . . . Kills | -11 -10 -9 -8 ------- Run | Yrd Mat Mat Mat Combat Hostiles Destroyed 47 | . 14 22 11 Melee 1 | . . . 1 Guns 23 | . 2 19 2 Cannons 6 | . . . 6 AOE 17 | . 12 3 2 Classes Destroyed 11 | . 4 6 1 Worker 4 | . 1 3 . Builder 2 | . 1 1 . Hauler 2 | . . 2 . Recycler 4 | . . 1 3 Mechanic 1 | . . 1 . Operator 1 | . . 1 . Watcher 9 | . 3 4 2 Swarmer 12 | . . 8 4 Grunt 29 | . 14 11 4 Sentry 5 | . . 3 2 Hunter 1 | . . . 1 Best Kill Streak 6 | . 4 6 4 Combat Bots Only 4 | . 3 4 4 Max Kills in Single Turn 2 | . 2 2 1 Gunslinging 1 | . . 1 . Exploded 2 | . 2 1 1 Melee 1 | . . . 1 Uniques/NPCs Destroyed . | . . . . Combat | -11 -10 -9 -8 -------- Run | Yrd Mat Mat Mat Hostile Shots Fired 338 | . 22 117 199 Missed 110 | . 10 40 60 Damage Taken 2456 | . 147 727 1582 Core 752 | . 26 165 561 Absorbed by Shields . | . . . . Ignored by Resistances 712 | . 48 220 444 Regen/Repaired (Parts) 131 | . . 131 . Core Remaining (%) 82 | 100 89 58 . Volleys Fired 145 | . 28 79 38 Largest 2 | . 2 2 2 Hottest 150 | . 50 55 150 Shots Fired 259 | . 45 147 67 Gun 195 | . 28 138 29 Cannon 31 | . . . 31 Launcher 33 | . 17 9 7 Special . | . . . . Kinetic 214 | . 28 138 48 Thermal 12 | . . . 12 Explosive 33 | . 17 9 7 Electromagnetic . | . . . . Robot Hit Streak 16 | . 7 12 16 Robot Miss Streak 5 | . 2 5 3 Penetration Max . | . . . . Secondary Targets 2 | . . 2 . Max Gunslinging Chain 1 | . . 1 . Shots Hit Robots 176 | . 30 95 51 Core Hits 118 | . 34 51 33 Critical Kills . | . . . . Critical Parts Destroyed 1 | . 1 . . Critical Strikes 1 | . 1 . . Destroy 1 | . 1 . . Melee Attacks . | . . . . Impact . | . . . . Slashing . | . . . . Piercing . | . . . . Sneak Attacks . | . . . . Combat Hostiles . | . . . . Follow-up Attacks . | . . . . Damage Inflicted 4633 | . 1254 1856 1523 Guns 2072 | . 223 1535 314 Cannons 686 | . . . 686 Explosions 1830 | . 1031 320 479 Melee . | . . . . Ramming 45 | . . 1 44 Kinetic 2483 | . 223 1535 725 Thermal 423 | . 148 . 275 Explosive 1682 | . 883 320 479 Electromagnetic . | . . . . Impact . | . . . . Slashing . | . . . . Piercing . | . . . . Highest Corruption 2 | . . 2 1 Average Corruption 1 | . . 1 1 Corruption Purged . | . . . . Corruption Blocked . | . . . . Effects 8 | . . 7 1 Message Errors 2 | . . 1 1 Matter Fused 2 | . . 2 . Energy Discharges 2 | . . 2 . Data Loss (minor) 1 | . . 1 . Alerts 1 | . . 1 . Overload Shots . | . . . . Overflow Damage 108 | . 70 . 38 Projectiles 22 | . . . 22 Explosions 86 | . 70 . 16 Melee . | . . . . Knockbacks 4 | . . . 4 Impact . | . . . . Kinetic 4 | . . . 4 Secondary . | . . . . Self-Inflicted Damage 91 | . 33 41 17 Shots 6 | . 3 3 . Rammed 20 | . . 1 19 Targets Rammed 21 | . 1 1 19 Kicked 1 | . 1 . . Crushed . | . . . . Highest Temperature 338 | . 19 42 338 Average Temperature 43 | . 6 11 91 Received Heat Transfer 1503 | . 81 369 1053 Effects 3 | . . . 3 Interference 3 | . . . 3 Siege Activations . | . . . . Robots Corrupted . | . . . . Combat Hostiles . | . . . . Parts Fried . | . . . . Impact Corruptions . | . . . . Robots Melted . | . . . . Combat Hostiles . | . . . . Parts Melted . | . . . . Heat Transferred 507 | . 100 . 407 Parts Sabotaged . | . . . . Parts Stolen . | . . . . Parts Stripped . | . . . . Power Chain Reactions . | . . . . Alert | -11 -10 -9 -8 ------- Run | Yrd Mat Mat Mat Peak Influence 418 | . 418 369 249 Initial 118 | . . 79 118 Average 200 | . 251 203 143 Maximum Alert Level 2 | . 2 1 1 Low Security (%) 44 | 100 19 44 74 Level 1 48 | . 61 55 25 Level 2 6 | . 19 . . Level 3 . | . . . . Level 4 . | . . . . Level 5 . | . . . . High Security . | . . . . Max Security . | . . . . Squads Dispatched 10 | . 3 5 2 Investigation 7 | . 3 3 1 Extermination . | . . . . Reinforcement 3 | . . 2 1 Assault . | . . . . Garrison . | . . . . Intercept . | . . . . Searches Triggered . | . . . . Construction Impeded 1 | . . 1 . Haulers Reinforced . | . . . . Active Scanning Responses . | . . . . Cargo Convoy Interrupts . | . . . . Stealth | -11 -10 -9 -8 --------- Run | Yrd Mat Mat Mat Distress Signals 5 | . . 4 1 Communications Jammed . | . . . . Distress Signals . | . . . . Times Spotted 73 | . 18 37 18 Peak Tracking Total 6 | . 3 4 6 Tactical Retreats 4 | . . 2 2 Traps | -11 -10 -9 -8 ------- Run | Yrd Mat Mat Mat Traps Triggered 3 | . 1 2 . Indirectly . | . . . . Trap Hack Attempts . | . . . . Triggered . | . . . . Disarmed . | . . . . Reprogrammed . | . . . . Reused . | . . . . Traps Extracted . | . . . . Installed . | . . . . Triggered . | . . . . Machines | -11 -10 -9 -8 ---------- Run | Yrd Mat Mat Mat Machines Disabled 7 | . 3 2 2 Max in Single Turn 2 | . 2 1 1 Machines Repaired . | . . . . Machines Dismantled . | . . . . Machines Sabotaged . | . . . . Overloaded Fab Kills . | . . . . Hacking | -11 -10 -9 -8 --------- Run | Yrd Mat Mat Mat Machines Accessed 17 | . 9 6 2 Terminals 15 | . 8 5 2 Fabricators . | . . . . Repair Stations 1 | . . 1 . Recycling Units 1 | . 1 . . Scanalyzers . | . . . . Garrison Access . | . . . . Total Hacks 68 | . 31 24 13 Successful 48 | . 26 18 4 Failed 20 | . 5 6 9 Catastrophic 3 | . 1 1 1 Database Lockouts . | . . . . Manual 1 | . . . 1 Terminals 59 | . 27 19 13 Fabricators . | . . . . Repair Stations 5 | . . 5 . Recycling Units 4 | . 4 . . Scanalyzers . | . . . . Garrison Access . | . . . . Terminal Hacks 40 | . 23 13 4 Record 17 | . 10 4 3 Level Access Points 1 | . 1 . . Branch Access Points 1 | . 1 . . Emergency Access Points 1 | . 1 . . Recycling Unit Index 1 | . 1 . . Alert Level 3 | . 1 2 . Unreport Threat 1 | . . 1 . Locate Traps 1 | . 1 . . Dispatch Records 3 | . 2 1 . Maintenance Status 1 | . . 1 . Surveillance Status 1 | . 1 . . Patrol Status 1 | . 1 . . Transport Status 1 | . 1 . . Investigation Status 1 | . . 1 . Assault Status 1 | . . 1 . Hauler Manifests 2 | . . 2 . Registered Components 1 | . . . 1 Zone Layout 2 | . 2 . . Fabricator Hacks . | . . . . Repair Station Hacks 5 | . . 5 . Scan Component 2 | . . 2 . Repair 2 | . . 2 . Refit 1 | . . 1 . Recycling Unit Hacks 3 | . 3 . . Recycle Component 2 | . 2 . . Process 1 | . 1 . . Scanalyzer . | . . . . Garrison Access Hacks . | . . . . Unauthorized Hacks . | . . . . Terminals . | . . . . Fabricators . | . . . . Repair Stations . | . . . . Recycling Units . | . . . . Scanalyzers . | . . . . Garrison Access . | . . . . Data Cores Recovered . | . . . . Used . | . . . . Hacking Detections 17 | . 9 6 2 Full Trace Events 14 | . 7 5 2 Feedback Events 2 | . . 2 . Corruption 2 | . . 2 . Feedback Blocked . | . . . . Robot Schematics Acquired . | . . . . Robots Built . | . . . . Authchips . | . . . . Time . | . . . . Total Robot Build Rating . | . . . . Part Schematics Acquired . | . . . . Parts Built . | . . . . Authchips . | . . . . Time . | . . . . Total Part Build Rating . | . . . . Parts Repaired 2 | . . 2 . Time 64 | . . 64 . Parts Recycled 2 | . 2 . . Recycled Matter 49 | . 49 . . Retrieved Matter . | . . . . Retrieved Components . | . . . . Parts Scanalyzed . | . . . . Part Schematics Acquired . | . . . . Parts Damaged . | . . . . Bothacking | -11 -10 -9 -8 ------------ Run | Yrd Mat Mat Mat Used RIF Installer . | . . . . Robots Hacked . | . . . . Non-combat . | . . . . Combat . | . . . . Robot Hacks Applied . | . . . . Relay Couplers Released . | . . . . Fabnet Peak Effective % . | . . . . Robots Rewired . | . . . . Allies Hacked . | . . . . Hacks Repelled . | . . . . Allies | -11 -10 -9 -8 -------- Run | Yrd Mat Mat Mat Total Allies . | . . . . Largest Group . | . . . . Highest-Rated Group . | . . . . Highest-Rated Ally . | . . . . Total Orders . | . . . . Ally Attacks . | . . . . Total Damage . | . . . . Kills . | . . . . Allies Corrupted . | . . . . Allies Melted . | . . . . Intel | -11 -10 -9 -8 ------- Run | Yrd Mat Mat Mat Robot Analysis Total . | . . . . Derelict Logs Recovered . | . . . . Drone Launches . | . . . . Drone Recoveries . | . . . . Exploration | -11 -10 -9 -8 ------------- Run | Yrd Mat Mat Mat Turns Passed 2926 | 55 1010 1103 758 Spaces Moved 1515 | 38 668 472 337 Core 70 | 13 8 6 43 Treads 663 | 25 143 235 260 Legs 748 | . 517 231 . Wheels . | . . . . Hover . | . . . . Flight 34 | . . . 34 Fastest Speed 40 | 50 120 120 40 Average Speed 140 | 122 128 141 163 Slowest Speed 350 | 160 160 350 250 Overloaded Moves . | . . . . Propulsion Burnouts . | . . . . Robots Hopped . | . . . . Cave-ins Triggered . | . . . . Exploration Rate (%) 39 | 4 80 46 28 Regions Visited 3 Branch Regions . Pre-discovered Areas . | . . . . Known Exits Taken 2 | . 1 1 . Unknown Exits Taken 1 | 1 . . . Scrap Searched . | . . . . Spaces Dug 3 | . . 3 . Terrain Destroyed 200 | . 101 39 60 Melee . | . . . . Projectile 2 | . . . 2 AOE 198 | . 101 39 58 Terrain Rammed . | . . . . Walls Destroyed . | . . . . Machines Disabled . | . . . . Actions | -11 -10 -9 -8 --------- Run | Yrd Mat Mat Mat Total 2058 | 47 772 771 468 Wait 227 | . 48 156 23 Move 1512 | 37 667 471 337 Hop . | . . . . Pick Up 59 | 5 13 25 16 Fast Attach . | . . . . Attach 29 | 5 5 10 9 Detach 1 | . . . 1 Swap 37 | . 6 16 15 Drop 27 | . 4 13 10 Fire 145 | . 28 79 38 Melee . | . . . . Ram 19 | . . . 19 Kick 1 | . 1 . . Crush 1 | . . 1 . Escape Stasis . | . . . . Rewire . | . . . . Trap . | . . . . Miscellaneous . | . . . . Route ------- -11/Scrapyard -10/Materials (discovered 5 exits: *Mat x3 / *Min x2) -9/Materials (discovered 3 exits: *Mat / [*Min] / *Sto) -8/Materials History --------- Turn | Location | Event 5 | -11/Scrapyard | Discovered new exit (range 16) 56 | -11/Scrapyard | Entered Materials 79 | -10/Materials | Identified exit to Materials 306 | -10/Materials | Build established: Mutant 379 | -10/Materials | Discovered new exit (range 13) 407 | -10/Materials | Identified exit to Mines 1066 | -10/Materials | Entered another Materials area 1066 | -9/Materials | Evolved 2 slots: Power x1, Utility x1 1340 | -9/Materials | Discovered new exit (range 7) 1352 | -9/Materials | Identified exit to Storage 1366 | -9/Materials | Discovered new exit (range 15) 1630 | -9/Materials | Repaired Minigun 1658 | -9/Materials | Repaired Lgt. Treads 2015 | -9/Materials | Build established: Scavenger-Skirmisher 2166 | -9/Materials | Discovered new exit (range 3) 2167 | -9/Materials | Identified exit to Materials 2169 | -9/Materials | Entered another Materials area 2169 | -8/Materials | Evolved 2 slots: Utility x2 2812 | -8/Materials | Core integrity fell below 50% 2873 | -8/Materials | Core integrity fell below 20% 2877 | -8/Materials | Lost 11 parts (3p2n4u2w) 2927 | -8/Materials | Destroyed by G-47 Trooper with Particle Gun Last Messages --------------- G-47 Trooper destroyed. Critical hit (Burn: +37). Acquired Missile Launcher. Critical hit (Burn: +37). G-47 Trooper destroyed. Destroyed Aluminum Leg. Critical hit (Burn: +37). G-47 Trooper destroyed. K%Q I&ASY3>JG6 Destroyed Aluminum Leg. Missile Launcher destroyed. G-47 Trooper destroyed. U-05 Engineer builds a Door. U-05 Engineer builds a Wall. U-05 Engineer lays Concrete. U-05 Engineer builds a Wall. Hvy. Particle Cannon destroyed. Map ----- +----------------------------------------------------+ | !]# """ ############ ????????????????? | | !]# """ !!######## ????????????????? | | ######### " !!##???????????????????????? | | ######### ==##???????????????????????? | | ???????## ==##???????????????????????? | | ??####### !!##???????????????????????? | | ? ####### !!##???????????????????????? | | ? # ######???????????????????????? | | ? # ######???????????????????????? | | ? # ##???????????????????????????? | | ? ###+####### ####???????????????????????????? | | ?## #! #### ## ###########?????????????????? | | ?## # ! ### ####### ???????????????? | | ?## ? # #### ??????????????? | | ?## ? # !] /%% ??????????????? | | ????? # !] ## # ??????????????? | | ????? # !] # ####### ?????????????????? | | ????? ######## #####??#??????????????? | | ????? ######## # ??? ???????????????? | | ?????????????# % # ?? ????????????????? | | ?????????????? # # ? ""????????????????? | | ???????????????# ##### """????????????????? | | ??????????????## ##### ""?????????????????? | | ??????????????# = ### ???"""??????????????? | | ??????????????## ## ##u """ #???????????? | | ?????????????? # @%g #???????????? | | ?????????????? # ## ## #####???????????????? | | ?????????????? # ### # ??????????????? | | ?????????????? ### ####### ?????????????? | | ?????????????? ### ####??? """???????????????? | | ????????????????## # ????? """???????????????? | | ????????????????## # ?????? ""????????????????? | | ????????????????## + ?????? ???????????????? | | ????????????????#### ?????? ???????????????? | | ????????????????####??????? ? ??????????????? | | ???????????????????????????? ? ?????????????? | | ???????????????????????????? ? ?????????????? | | ???????????????????????????? ##?#???????????????? | | ???????????????????????????? #??????????????????? | | ?????????????????????????????#???????????????????? | | ?????????????????????????????????????????????????? | | ?????????????????????????????????????????????????? | | ?????????????????????????????????????????????????? | | ?????????????????????????????????????????????????? | | ?????????????????????????????????????????????????? | | ?????????????????????????????????????????????????? | | ?????????????????????????????????????????????????? | | ?????????????????????????????????????????????????? | | ?????????????????????????????????????????????????? | | ?????????????????????????????????????????????????? | +----------------------------------------------------+ Best States ------------- Heat Dissipation 31 Energy Generation 21 Energy Capacity 430 Matter Stores 300 Matter Capacity 300 Sight Range 16 Robot Scan Range 15 Terrain Scan Density 10 ECM Strength 1 Resistance: KI 20 Resistance: TH 20 Resistance: EX 20 Resistance: EM 20 Resistance: I 20 Resistance: S 20 Resistance: P 20 Evasion (%) 55 Targeting Accuracy 6 Recoil Reduction 2 Offensive Hacking 10 Item Schematics ----------------- None Robot Schematics ------------------ None Fabricated ------------ Nothing Alien Tech Used ----------------- None Achievements -------------- Fist Fight I Spy Challenges ------------ None Game ------ Seed SwordBehemothAccelerator Manual? 0 Play Time 00:28:15 Cumulative 2.8 hours Start 2024.04.27 @ 19:11:52 End 2024.04.27 @ 20:49:43 Sessions 1 Manual Loads 0 Difficulty Adventurer Special Mode None Game No. 9 Rogue 0 Adventurer 9 Explorer 0 Win Type - Total 0 Types 0/0/0/0/0/0/0/0/0 Lore% 8 Gallery% 9 Achievement% 11 Wizard Run 0 Options --------- Layout 1 ASCII 0 Keyboard 0 Movement Mouse Keybinds 0 Fullscreen 1 Font 24/Smallcaps Map View 50x35 Zoom Use 0% Tactical HUD 0 Map Filters NONE Filters NONE Steam 1 RUN: a2f364f5-dea8-4f4c-a0d1-b675377bb3c1